fUSD/lending_fUSD_20240330
["ID","MTS","AMOUNT","RATE_DAILY","PERIOD"]
[321028207,1711799441030,-500.0,0.0004261,30]
[321028208,1711799441040,-292.63997449,0.00042658,2]
[321028209,1711799441049,-187.25429213,0.00042671,10]
[321028210,1711799441059,-153.5774782,0.00042672,16]
[321028211,1711799441068,-629.11,0.00042745,2]
[321028212,1711799441078,-735.2165,0.00042785,2]
[321028213,1711799441089,-500.0,0.00042785,2]
[321028214,1711799441099,-500.0,0.00042785,2]
[321028215,1711799441112,-500.0,0.00042785,2]
[321028216,1711799441121,-500.0,0.00042785,2]
[321028217,1711799441133,-500.0,0.00042785,2]
[321028218,1711799441143,-541.4608,0.00042785,2]
[321028219,1711799441155,-1600.0,0.000428,15]
[321028220,1711799441165,-728.58,0.0004282,2]
[321028221,1711799441175,-4514.48710329,0.00042844,17]
[321028222,1711799441186,-1187.0,0.000429,30]
[321028223,1711799441196,-2000.0,0.000429,15]
[321028224,1711799441205,-292.63997449,0.000429,2]
[321028225,1711799441214,-359.69523298,0.000429,2]
[321028226,1711799441224,-196.10709424,0.000429,2]
[321028227,1711799441234,-1718.38053806,0.000429,2]
[321028228,1711799441244,-152.0,0.00042924,3]
[321028229,1711799441254,-968.47978678,0.00042928,2]
[321028230,1711799441263,-1311285.06512603,0.00042967,2]
[321028231,1711799441584,-2500.0,0.00041865,2]
[321028232,1711799441598,-1380.75849653,0.00042967,2]
[321028233,1711799441623,-1404.59084686,0.00042967,2]
[321028234,1711799441646,-1466.15654696,0.00042967,2]
[321028264,1711799443374,-478.11,0.00041855,10]
[321028267,1711799443384,-427.06857182,0.00042,2]
[321028270,1711799443394,-427.06857182,0.00042,2]
[321028272,1711799443403,-427.06857182,0.00042,2]
[321028274,1711799443413,-427.06857182,0.00042,2]
[321028275,1711799443422,-427.06857182,0.00042,2]
[321028276,1711799443431,-427.06857182,0.00042,2]
[321028277,1711799443441,-427.06857182,0.00042,2]
[321028278,1711799443450,-24.87685956,0.00042,2]
[321028279,1711799443468,-402.19171226,0.00042,2]
[321028280,1711799443477,-427.06857182,0.00042,2]
[321028281,1711799443487,-2185.97011404,0.00042967,2]
[321028282,1711799443507,-427.06857182,0.00042,2]
[321028283,1711799443517,-8459.8206485,0.00042967,2]
[321028284,1711799443529,-1542.29393722,0.00042967,2]
[321028285,1711799443541,-5023.03732315,0.00042967,2]
[321028313,1711799446414,-243.0158793,0.00041999,4]
[321028314,1711799446424,-671.80311756,0.00041999,4]
[321028315,1711799446434,-427.06857182,0.00042,2]
[321028316,1711799446444,-427.06857182,0.00042,2]
[321028317,1711799446454,-9.14385946,0.00042,2]
[321028318,1711799446466,-417.92471236,0.00042,2]
[321028319,1711799446476,-427.06857182,0.00042,2]
[321028320,1711799446486,-427.06857182,0.00042,2]
[321028321,1711799446496,-427.06857182,0.00042,2]
[321028322,1711799446505,-427.06857182,0.00042,2]
[321028323,1711799446515,-427.06857182,0.00042,2]
[321028324,1711799446525,-427.06857182,0.00042,2]
[321028325,1711799446535,-427.06857182,0.00042,2]
[321028326,1711799446545,-427.06857182,0.00042,2]
[321028327,1711799446554,-427.06857182,0.00042,2]
[321028328,1711799446564,-427.06857182,0.00042,2]
[321028329,1711799446574,-427.06857182,0.00042,2]
[321028330,1711799446583,-427.06857182,0.00042,2]
[321028331,1711799446594,-427.06857182,0.00042,2]
[321028332,1711799446605,-427.06857182,0.00042,2]
[321028333,1711799446618,-427.06857182,0.00042,2]
[321028334,1711799446628,-427.06857182,0.00042,2]
[321028335,1711799446638,-2511.87382489,0.00042967,2]
[321028336,1711799446661,-427.06857182,0.00042,2]
[321028337,1711799446671,-14520.5222351,0.00042967,2]
[321028338,1711799446697,-141699.76373127,0.00042967,2]
[321028339,1711799446707,-150.5,0.0004297,15]
[321028340,1711799446717,-312.0,0.0004297,15]
[321028341,1711799446727,-150.5,0.0004298,15]
[321028342,1711799446737,-207.5,0.0004298,15]
[321028343,1711799446746,-312.0,0.0004298,15]
[321028344,1711799446756,-260.47354147,0.00042984,4]
[321028345,1711799446766,-374.33033164,0.00042984,4]
[321028346,1711799446776,-175.8339671,0.00042984,4]
[321028347,1711799446785,-150.5,0.0004299,15]
[321028348,1711799446795,-150.5,0.0004299,15]
[321028349,1711799446804,-312.0,0.0004299,15]
[321028350,1711799446814,-151.033019,0.0004299,27]
[321028351,1711799446824,-287.00925042,0.0004299,2]
[321028352,1711799446833,-158.57301116,0.00042991,28]
[321028353,1711799446844,-151.033019,0.00042994,29]
[321028354,1711799446854,-157.033019,0.00042995,30]
[321028355,1711799446864,-151.033019,0.00042996,31]
[321028356,1711799446874,-151.03302,0.00042997,32]
[321028357,1711799446887,-27332.16941355,0.00042997,2]
[321028358,1711799446897,-1196.27057008,0.00042998,4]
[321028359,1711799446908,-294.24903272,0.00042998,2]
[321028361,1711799446918,-235.01017711,0.00042998,4]
[321028363,1711799446927,-1708.58707502,0.00042998,4]
[321028365,1711799446937,-156.22455142,0.00042998,4]
[321028366,1711799446947,-2258.59066381,0.00042998,4]
[321028367,1711799446956,-748.14878296,0.00042998,2]
[321028368,1711799446968,-4157.81686675,0.00042998,4]
[321028369,1711799446977,-9253.7008142,0.00042998,4]
[321028370,1711799446988,-155.21103832,0.00042998,4]
[321028371,1711799446997,-175.69672673,0.00042998,4]
[321028372,1711799447007,-843.46695987,0.00042998,4]
[321028373,1711799447016,-330.57731477,0.00042998,4]
[321028374,1711799447026,-232.34125266,0.00042998,4]
[321028375,1711799447036,-2016.20832057,0.00042998,30]
[321028376,1711799447045,-169.28136364,0.00042998,4]
[321028377,1711799447055,-387.03857533,0.00042998,4]
[321028378,1711799447065,-2221.7758009,0.00042998,4]
[321028379,1711799447076,-205.89992937,0.00042998,2]
[321028380,1711799447085,-5018.08151861,0.00042998,2]
[321028381,1711799447343,-300.0,0.00042999,10]
[321028382,1711799447354,-300.0,0.00042999,2]
[321028383,1711799447364,-300.0,0.00042999,2]
[321028384,1711799447374,-300.0,0.00042999,2]
[321028385,1711799447383,-300.0,0.00042999,2]
[321028386,1711799447393,-300.0,0.00042999,2]
[321028387,1711799447402,-300.0,0.00042999,2]
[321028388,1711799447412,-300.0,0.00042999,2]
[321028389,1711799447421,-300.0,0.00042999,2]
[321028390,1711799447431,-300.0,0.00042999,2]
[321028391,1711799447440,-300.0,0.00042999,2]
[321028392,1711799447449,-1000.0,0.00042999,120]
[321028393,1711799447459,-1328.32401408,0.00043,3]
[321028394,1711799447468,-49070.93661555,0.00043,2]
[321028395,1711799447516,-5187.82055422,0.00043,2]
[321028396,1711799457814,405.96324163,0.000291,2]
[321028397,1711799465223,1031.02868951,0.0003,4]
[321028407,1711799639589,756483.6066179,0.00025,2]
[321028408,1711799639614,2500.0,0.00025,2]
[321028409,1711799639641,18521.98558175,0.00025,2]
[321028410,1711799639666,170000.98558175,0.00025,2]
[321028411,1711799639698,205105.07160193,0.00025,2]
[321028559,1711800637685,-346.49127393,0.00038615,4]
[321028560,1711800637753,-384.2290936,0.00038615,4]
[321028561,1711800637766,-807.63536308,0.00038615,4]
[321028562,1711800637777,-115.57332923,0.00038615,4]
[321028563,1711800637787,-587.82772787,0.00038616,4]
[321028564,1711800637796,-37.87618245,0.00038616,4]
[321028565,1711800637808,-117.26474415,0.00038616,4]
[321028566,1711800637818,-201.6563117,0.00038616,4]
[321028567,1711800637827,-101.96777905,0.00038616,4]
[321028568,1711800637839,-298.52743707,0.00038616,4]
[321028569,1711800637851,-252.56497234,0.00038616,4]
[321028570,1711800637860,-110.12605278,0.00038617,4]
[321028571,1711800637913,-600.5,0.00038617,4]
[321028596,1711800640724,-212.63889439,0.00038615,4]
[321028597,1711800640735,-499.53374946,0.00038617,4]
[321028598,1711800640748,-69.40220946,0.00038617,4]
[321028599,1711800640759,-435.60504467,0.00038617,4]
[321028600,1711800640770,-1149.68220069,0.00038618,5]
[321028601,1711800640781,-4523.7570587,0.00038619,4]
[321028602,1711800640791,-586.34,0.0003865,2]
[321028603,1711800640802,-160.19031849,0.00039465,2]
[321028604,1711800640813,-546.40226944,0.00040223,4]
[321028605,1711800640822,-150.0,0.00040224,2]
[321028606,1711800640832,-161.0,0.00040277,15]
[321028607,1711800640841,-23880.0,0.00040292,2]
[321028608,1711800640852,-484.77,0.00040317,2]
[321028609,1711800640863,-169.64,0.00040331,2]
[321028610,1711800640873,-760.13,0.00040335,2]
[321028611,1711800640882,-1518.64,0.00040486,2]
[321028612,1711800640892,-515.23,0.00040576,2]
[321028613,1711800640901,-160.19031848,0.0004061,2]
[321028614,1711800640911,-172.64,0.00040797,2]
[321028615,1711800640921,-586.34,0.00040914,2]
[321028616,1711800640930,-1000.0,0.00041096,15]
[321028617,1711800640942,-1500.0,0.00041096,45]
[321028618,1711800640952,-180.0,0.00041096,2]
[321028619,1711800640961,-1500.0,0.000414,2]
[321028620,1711800640971,-584.74,0.00041489,2]
[321028621,1711800640981,-1848.8139,0.00041665,2]
[321028622,1711800640990,-879.16,0.00041755,10]
[321028623,1711800641000,-732.63,0.00041755,10]
[321028624,1711800641010,-610.53,0.00041755,10]
[321028625,1711800641019,-160.19031848,0.00041755,2]
[321028626,1711800641029,-170.50859704,0.00041764,4]
[321028627,1711800641038,-68709.7553,0.00041765,2]
[321028628,1711800641048,-21607.1629667,0.00041765,2]
[321028629,1711800641057,-262.65440802,0.00041842,4]
[321028630,1711800641066,-272.14,0.00041855,30]
[321028631,1711800641077,-157.22316343,0.00041863,4]
[321028632,1711800641087,-489.17760572,0.00041863,7]
[321028633,1711800641096,-2358.97580479,0.00041863,4]
[321028634,1711800641106,-205.27273477,0.00041864,4]
[321028635,1711800641115,-269.50105085,0.00041864,4]
[321028636,1711800641126,-100000.0,0.00041865,2]
[321028637,1711800641135,-500.0,0.00041865,2]
[321028638,1711800641145,-225.52664279,0.00041898,14]
[321028639,1711800641155,-79516.72888935,0.000419,2]
[321028656,1711800642718,-1986.52016962,0.000419,2]
[321028692,1711800645840,-163496.75094103,0.000419,2]
[321028693,1711800645849,-1381.35776002,0.00041998,2]
[321028694,1711800645859,-231.1298965,0.00041999,4]
[321028695,1711800645869,-1290.79087453,0.00041999,2]
[321028696,1711800645878,-39154.94576549,0.00042,2]
[321028697,1711800645917,-2006.24807857,0.00042,2]
[321028698,1711800645929,-6278.103,0.00042,2]
[321028699,1711800645954,-762.12224171,0.00042,2]
[321028702,1711800649273,1031.39457924,0.00025,2]
[321028703,1711800649534,359.56252001,0.00025,2]
[321028706,1711801446303,9353.97129882,0.00025,2]
[321028707,1711801446328,9353.97129882,0.00025,2]
[321028708,1711801446358,7101.10949868,0.00025,2]
[321028709,1711801560883,17206.03473088,0.00025,2]
[321028710,1711801574881,14338.36227573,0.00025,2]
[321028711,1711801590888,7470.28674566,0.00025,2]
[321028712,1711801615156,7470.28674566,0.00025,2]
[321028713,1711801630949,7470.28674566,0.00025,2]
[321028716,1711801652900,7470.28674566,0.00025,2]
[321028717,1711801674985,7470.28674566,0.00025,2]
[321028718,1711801694917,7470.28674566,0.00025,2]
[321028726,1711801710930,7470.28674566,0.00025,2]
[321028733,1711801734367,7470.28674566,0.00025,2]
[321028734,1711801746916,7470.28674566,0.00025,2]
[321028737,1711801770026,7470.28674566,0.00025,2]
[321028738,1711801784922,7470.28674566,0.00025,2]
[321028739,1711801802915,2693.79254368,0.00025,2]
[321028749,1711801831776,-212.63889439,0.00038703,4]
[321028750,1711801831786,-1279.5620117,0.00038704,4]
[321028751,1711801831797,-653.06018846,0.00038705,4]
[321028752,1711801831808,-160.19031848,0.00038712,2]
[321028753,1711801831817,-560.36,0.00038812,2]
[321028754,1711801831827,-16553.6062,0.00039784,2]
[321028755,1711801831838,-150.31,0.00040128,2]
[321028756,1711801831848,-19259.16,0.00040282,2]
[321028757,1711801831857,-161.0,0.00040319,15]
[321028758,1711801831866,-158.78,0.00040333,2]
[321028759,1711801831879,-387.82,0.00040367,2]
[321028760,1711801831890,-1063.49,0.00040367,2]
[321028761,1711801831899,-1500.0,0.00040418,10]
[321028762,1711801832096,-250.0,0.00040425,2]
[321028763,1711801832106,-150.0,0.00040454,2]
[321028764,1711801832115,-633.44,0.00040475,2]
[321028765,1711801832125,-340.0,0.000405,2]
[321028766,1711801832135,-250.0,0.00040537,2]
[321028767,1711801832146,-500.0,0.0004055,2]
[321028768,1711801832156,-186.95300292,0.00040585,2]
[321028769,1711801832184,-942.12699708,0.00040585,2]
[321028770,1711801832194,-189.24,0.00040589,2]
[321028771,1711801832204,-153.81,0.00040607,2]
[321028772,1711801832214,-655.1,0.00040852,2]
[321028773,1711801832223,-612.18,0.00040852,2]
[321028774,1711801832233,-1500.0,0.00040966,10]
[321028775,1711801832243,-1000.0,0.00041,2]
[321028776,1711801832252,-153.81,0.00041031,2]
[321028777,1711801832263,-560.36,0.00041076,2]
[321028778,1711801832272,-1000.0,0.000411,2]
[321028779,1711801832283,-1000.0,0.000412,2]
[321028780,1711801832292,-1000.0,0.000413,2]
[321028781,1711801832302,-1000.0,0.000414,2]
[321028782,1711801832311,-153.81,0.00041454,2]
[321028783,1711801832320,-1000.0,0.000415,2]
[321028784,1711801832330,-1391.97765459,0.00041527,2]
[321028785,1711801832340,-548.25499,0.0004158,9]
[321028786,1711801832349,-809.5527,0.00041665,2]
[321028787,1711801832359,-264.67,0.00041675,2]
[321028788,1711801832368,-3105.3649393,0.00041681,2]
[321028789,1711801832377,-20469.7916738,0.000417,2]
[321028790,1711801832386,-1028.0,0.000417,2]
[321028791,1711801832396,-10053.20051508,0.00041737,2]
[321028792,1711801832405,-1905.39676909,0.00041763,4]
[321028793,1711801832415,-1718.67865912,0.00041764,4]
[321028794,1711801832424,-100000.0,0.00041765,2]
[321028795,1711801832433,-1391.97765459,0.00041772,2]
[321028796,1711801832443,-206.0,0.000418,2]
[321028797,1711801832452,-1000.0,0.000418,2]
[321028798,1711801832462,-153.81,0.00041877,2]
[321028799,1711801832472,-369.83001402,0.00041889,4]
[321028800,1711801832481,-244.89777386,0.00041899,4]
[321028801,1711801832490,-39083.2295,0.000419,2]
[321028802,1711801832500,-800.0,0.000419,15]
[321028803,1711801832509,-167.40732762,0.00041999,4]
[321028804,1711801832518,-236.27557998,0.00041999,4]
[321028805,1711801832529,-1152.94654634,0.00041999,5]
[321028806,1711801832538,-57830.57155925,0.00042,2]
[321028807,1711801832547,-162.50493682,0.0004203,2]
[321028808,1711801832557,-396260.42417498,0.00042033,2]
[321028809,1711801832570,-9279.7543489,0.00042033,2]
[321028810,1711801832582,-639.84087267,0.00042033,2]
[321028811,1711801832594,-586.44897174,0.00042033,2]
[321028812,1711801832670,-7482.49374781,0.00042033,2]
[321028813,1711801832680,-1500.0,0.00042062,30]
[321028814,1711801832689,-234.54853063,0.00042098,2]
[321028815,1711801832699,-6882.95772174,0.00042098,2]
[321028816,1711801832733,-20023.89769682,0.00042098,2]
[321028826,1711801840053,-508.77,0.00042088,10]
[321028827,1711801840063,-1512.78155959,0.00042098,2]
[321028839,1711801842766,-2406.04516753,0.00042098,2]
[321028959,1711801845757,359.56252001,0.00025,2]
[321028960,1711801845965,-504.32,0.00039983,2]
[321028961,1711801845975,-601.04712092,0.00042097,4]
[321028962,1711801845985,-214174.31785432,0.00042098,2]
[321028963,1711801845994,-25652.4711307,0.00042196,2]
[321028964,1711801846004,-155.0,0.00042198,2]
[321028965,1711801846014,-504.32,0.00042247,2]
[321028966,1711801846023,-1391.97765459,0.00042263,2]
[321028967,1711801846033,-153.81,0.000423,2]
[321028968,1711801846044,-3105.36493925,0.00042439,2]
[321028969,1711801846054,-20469.79167372,0.00042456,2]
[321028970,1711801846064,-1391.97765462,0.0004259,2]
[321028971,1711801846073,-1500.0,0.0004261,30]
[321028972,1711801846083,-200.0,0.00042655,15]
[321028973,1711801846093,-800.0,0.00042655,20]
[321028974,1711801846103,-500.0,0.00042655,20]
[321028975,1711801846113,-200.0,0.00042656,15]
[321028976,1711801846123,-800.0,0.00042656,20]
[321028977,1711801846133,-800.0,0.00042656,20]
[321028978,1711801846143,-200.0,0.00042656,20]
[321028979,1711801846153,-500.0,0.00042656,20]
[321028980,1711801846163,-200.0,0.00042656,20]
[321028981,1711801846173,-153.81,0.00042723,2]
[321028982,1711801846183,-463.238,0.00042795,2]
[321028983,1711801846193,-43018.0,0.00042795,2]
[321028984,1711801846204,-2477.239,0.00042795,2]
[321028985,1711801846214,-1254.0,0.00042795,2]
[321028986,1711801846224,-537.0,0.00042795,2]
[321028987,1711801846233,-1600.0,0.000428,15]
[321028988,1711801846243,-537.0,0.000429,29]
[321028989,1711801846253,-171.64976783,0.000429,11]
[321028990,1711801846264,-500.0,0.000429,2]
[321028991,1711801846274,-4388.28287424,0.000429,17]
[321028992,1711801846283,-153.54691056,0.000429,17]
[321028993,1711801846294,-7500.0,0.000429,2]
[321028994,1711801846304,-2400.0,0.000429,15]
[321028995,1711801846313,-408.66405974,0.00042998,4]
[321028996,1711801846324,-232.7601915,0.00042998,4]
[321028997,1711801846335,-271.16402469,0.00042998,2]
[321028998,1711801846344,-261.18746714,0.00042998,4]
[321028999,1711801846354,-1373.18423874,0.00042998,2]
[321029000,1711801846364,-310.65491139,0.00042999,4]
[321029001,1711801846374,-255.97424289,0.00042999,4]
[321029002,1711801846384,-5018.08151861,0.00042999,2]
[321029003,1711801846393,-205.89992937,0.00042999,2]
[321029004,1711801846403,-300.0,0.00042999,2]
[321029005,1711801846413,-1000.0,0.00042999,120]
[321029006,1711801846422,-970264.98813448,0.00043,2]
[321029007,1711802324615,169.81729183,5e-05,2]
[321029008,1711802353955,192.32,0.00019848,2]
[321029009,1711802365640,286.39719897,0.00042197,60]
[321029010,1711802465749,-1050.00379037,0.00032244,4]
[321029011,1711802465772,-2439.11667586,0.00032245,4]
[321029012,1711802479992,-212.63889439,0.00032244,4]
[321029013,1711802480015,-1050.00379037,0.00032245,4]
[321029014,1711802480037,-488.82189881,0.00032247,4]
[321029015,1711802480059,-785.64394212,0.0003225,4]
[321029016,1711802487238,-1751.46458357,0.0003225,4]
[321029017,1711802593007,-1157.34263554,0.0003225,90]
[321029018,1711802687598,-986.72841425,0.0003225,90]
[321029033,1711803005541,-212.63889439,0.00032185,4]
[321029034,1711803005565,-150.44805289,0.00032186,2]
[321029035,1711803005587,-678.24196898,0.0003225,4]
[321029036,1711803005611,-179.32336699,0.000329,2]
[321029037,1711803005634,-250.0,0.00033,3]
[321029038,1711803005657,-300.0,0.00035,3]
[321029039,1711803030753,-4006.19767437,0.00036973,4]
[321029040,1711803030774,-190.92268239,0.00036973,4]
[321029041,1711803030795,-12427.0617459,0.00036974,2]
[321029042,1711803030816,-1279.5620117,0.00036999,4]
[321029043,1711803030839,-350.0,0.00037,3]
[321029044,1711803030861,-851.6036423,0.00037496,4]
[321029045,1711803030883,-559.87,0.00038289,2]
[321029046,1711803030903,-721.33,0.00038289,15]
[321029047,1711803030928,-499.99,0.00038289,2]
[321029048,1711803030952,-160.69,0.00038356,2]
[321029049,1711803030974,-400.0,0.00039,3]
[321029054,1711803032025,738.12280143,0.00036972,4]
[321029055,1711803032151,-250.0,0.00039736,112]
[321029056,1711803032161,-109.56252001,0.00039852,2]
[321029057,1711803032318,-165.46747999,0.00039852,2]
[321029058,1711803032328,-603.14,0.00039856,2]
[321029059,1711803032337,-498.19,0.0003986,2]
[321029060,1711803032347,-1777.91,0.00039867,2]
[321029061,1711803032356,-250.0,0.00039892,2]
[321029062,1711803032366,-200.0,0.00039898,2]
[321029063,1711803032375,-163.68,0.000399,15]
[321029064,1711803032385,-200.0,0.00039902,2]
[321029066,1711803032395,-545.91,0.00039902,2]
[321029068,1711803032405,-250.0,0.00039943,2]
[321029070,1711803032414,-500.0,0.00039964,2]
[321029072,1711803032423,-715.69,0.00039971,2]
[321029074,1711803032432,-150.0,0.00039989,4]
[321029076,1711803032442,-5404.30669177,0.0003999,2]
[321029082,1711803033383,16010.6202095,0.00036974,2]
[321029083,1711803037355,678.24196898,0.0003225,4]
[321029093,1711803038341,-18495.69330823,0.0003999,2]
[321029094,1711803038352,-200.0,0.00040091,2]
[321029095,1711803038363,-711.28,0.00040091,2]
[321029096,1711803038373,-159.05,0.00040109,2]
[321029097,1711803038384,-425.35,0.00040166,2]
[321029098,1711803038396,-223.65,0.00040193,120]
[321029099,1711803038407,-150.0,0.0004026,2]
[321029100,1711803038417,-425.35,0.00040276,2]
[321029101,1711803038428,-973.26,0.00040285,2]
[321029102,1711803038438,-170.17,0.00040359,2]
[321029103,1711803038447,-178.4,0.00040374,2]
[321029104,1711803038461,-425.35,0.00040386,2]
[321029105,1711803038472,-310.26,0.00040394,2]
[321029106,1711803038481,-900.0,0.00040418,10]
[321029107,1711803038491,-425.35,0.00040496,2]
[321029108,1711803038501,-559.87,0.00040553,2]
[321029109,1711803038511,-425.35,0.00040606,2]
[321029110,1711803038521,-425.35,0.00040717,2]
[321029111,1711803038531,-155.37696233,0.00040731,4]
[321029113,1711803038541,-425.35,0.00040827,2]
[321029114,1711803038551,-425.35,0.00040937,2]
[321029115,1711803038561,-900.0,0.00040966,10]
[321029116,1711803038571,-450.0,0.00041,3]
[321029117,1711803038582,-425.35,0.00041047,2]
[321029118,1711803038591,-180.0,0.00041096,2]
[321029119,1711803038601,-1000.0,0.00041096,15]
[321029120,1711803038612,-689.74,0.00041098,2]
[321029121,1711803038621,-3000.0,0.000411,2]
[321029122,1711803038631,-377.0,0.000411,2]
[321029123,1711803038641,-1060.0,0.000411,2]
[321029124,1711803038651,-425.35,0.00041157,2]
[321029125,1711803038662,-425.35,0.00041267,2]
[321029126,1711803038673,-425.35,0.00041378,2]
[321029127,1711803038682,-1300.0,0.000414,15]
[321029128,1711803038692,-425.35,0.00041488,2]
[321029129,1711803038702,-2700.0,0.000415,15]
[321029130,1711803038712,-22332.25647714,0.00041541,2]
[321029131,1711803038723,-484.27,0.00041544,10]
[321029132,1711803038732,-2282.42,0.00041544,10]
[321029133,1711803038742,-272.14,0.00041554,30]
[321029134,1711803038752,-9236.32342272,0.00041554,2]
[321029135,1711803038762,-12837.7487,0.00041562,2]
[321029136,1711803038772,-489.17760572,0.00041562,7]
[321029137,1711803038782,-303.76984911,0.00041562,4]
[321029138,1711803038792,-401.78894169,0.00041562,4]
[321029139,1711803038802,-309.55652023,0.00041562,4]
[321029140,1711803038812,-345.21232142,0.00041562,4]
[321029141,1711803038822,-195.28360126,0.00041562,4]
[321029142,1711803038834,-437.73313324,0.00041562,4]
[321029143,1711803038843,-311.98057188,0.00041562,4]
[321029144,1711803038854,-201.70306154,0.00041562,4]
[321029145,1711803038864,-377.07530359,0.00041562,4]
[321029146,1711803038874,-2879.74439731,0.00041562,2]
[321029147,1711803038883,-2162.89736187,0.00041562,4]
[321029148,1711803038893,-157.27631021,0.00041562,4]
[321029149,1711803038902,-503.18153396,0.00041562,4]
[321029150,1711803038912,-155.0,0.00041562,4]
[321029151,1711803038921,-203.26531134,0.00041562,4]
[321029152,1711803038930,-323.17336322,0.00041562,4]
[321029153,1711803038939,-1238.94442072,0.00041562,4]
[321029154,1711803038948,-205.27273477,0.00041562,4]
[321029155,1711803038958,-155.0,0.00041562,4]
[321029156,1711803038967,-4697.47901234,0.00041562,4]
[321029157,1711803038976,-192.21755063,0.00041562,4]
[321029158,1711803038986,-808.32318404,0.00041562,4]
[321029159,1711803038996,-218.90140169,0.00041562,4]
[321029160,1711803039005,-1043.94196735,0.00041562,4]
[321029161,1711803039014,-155.34283485,0.00041562,4]
[321029162,1711803039025,-155.49200959,0.00041563,4]
[321029163,1711803039034,-500.0,0.00041563,31]
[321029164,1711803039043,-500.0,0.00041563,31]
[321029165,1711803039053,-500.0,0.00041563,31]
[321029166,1711803039064,-562.24942549,0.00041563,31]
[321029167,1711803039073,-500.0,0.00041563,31]
[321029168,1711803039084,-500.0,0.00041563,31]
[321029169,1711803039093,-500.0,0.00041563,31]
[321029170,1711803039103,-500.0,0.00041563,31]
[321029171,1711803039112,-500.0,0.00041563,31]
[321029172,1711803039121,-500.0,0.00041563,31]
[321029173,1711803039131,-500.0,0.00041563,31]
[321029174,1711803039142,-500.0,0.00041563,31]
[321029175,1711803039383,-358.79342134,0.00041564,10]
[321029176,1711803039392,-205.98326482,0.00041564,13]
[321029177,1711803039402,-1069.3898,0.00041564,30]
[321029178,1711803039411,-14365.9559,0.00041564,2]
[321029179,1711803039421,-29287.3707,0.00041564,2]
[321029180,1711803039432,-443.511,0.00041564,2]
[321029181,1711803039442,-2500.0,0.00041564,2]
[321029182,1711803039451,-165.7454,0.00041564,2]
[321029183,1711803039460,-3398.9435,0.00041565,2]
[321029184,1711803039470,-1935.7113,0.00041565,2]
[321029185,1711803039479,-1000.0,0.00041565,2]
[321029186,1711803039489,-637.2944,0.00041565,2]
[321029187,1711803039498,-6447.4275,0.00041565,2]
[321029188,1711803039507,-276.9581,0.00041565,2]
[321029189,1711803039516,-812.4984,0.00041565,2]
[321029190,1711803039526,-292.63997449,0.00041565,2]
[321029191,1711803039535,-154.71,0.0004159,2]
[321029192,1711803039544,-425.35,0.00041598,2]
[321029193,1711803039553,-206.0,0.000416,2]
[321029194,1711803039563,-1018.0,0.000416,11]
[321029195,1711803039572,-4000.0,0.000416,15]
[321029196,1711803039581,-235470.4811839,0.000416,2]
[321029197,1711803039591,-704.24460064,0.00041641,4]
[321029198,1711803039601,-292.63997449,0.00041648,2]
[321029199,1711803039610,-191.33950028,0.00041653,2]
[321029200,1711803039619,-154.71,0.00041653,2]
[321029201,1711803039629,-871.56,0.00041653,2]
[321029202,1711803039638,-871.56,0.00041653,2]
[321029203,1711803039648,-316.22,0.00041654,30]
[321029204,1711803039658,-6073.81542523,0.00041661,2]
[321029205,1711803039667,-200.0,0.00041662,2]
[321029206,1711803039676,-200.0,0.00041662,2]
[321029207,1711803039686,-200.0,0.00041662,2]
[321029208,1711803039695,-1000.0,0.00041662,2]
[321029209,1711803039705,-189.0,0.00041662,2]
[321029210,1711803039714,-2631.80646209,0.00041662,4]